bitfinex-derivatives/quotes_ETHF0:USTF0_20260314
["timestamp","ask_amount","ask_price","bid_price","bid_amount"]
[1773473116935,1.05000056,2077.7,2076.8,1.05059153]
[1773473130046,0.97766191,2077.6,2076.8,1.05059153]
[1773473138254,0.97766191,2077.6,2076.6,21.80914295]
[1773473138255,0.97766191,2077.5,2076.6,21.80914295]
[1773473138555,0.97766191,2077.5,2076.7,0.90314295]
[1773473139254,0.97766191,2077.4,2076.7,0.90314295]
[1773473139456,0.97766191,2077.3,2076.7,0.90314295]
[1773473144256,0.97766191,2077.3,2076.9,0.90314295]
[1773473145158,5.84441619,2077.5,2076.9,0.90314295]
[1773473145365,0.97766191,2077.6,2076.9,0.90314295]
[1773473151667,0.897181,2077.5,2076.9,0.90314295]
[1773473157971,5.84404619,2077.6,2076.9,0.90314295]
[1773473158172,0.90289563,2077.7,2076.9,0.90314295]
[1773473158373,6.74691326,2077.7,2076.9,0.90314295]
[1773473159971,0.90289563,2077.7,2076.9,0.90314295]
[1773473160167,6.74696094,2077.7,2076.9,0.90314295]
[1773473160373,0.90289563,2077.7,2076.9,0.90314295]
[1773473160868,0.90289563,2077.7,2077.1,0.91382989]
[1773473161067,0.90289563,2077.7,2077.1,0.91863702]
[1773473161476,6.74696094,2077.7,2077.1,0.91863702]
[1773473161677,0.90289563,2077.7,2077.1,0.91863702]
[1773473162275,0.00571463,2077.7,2077.1,0.91863702]
[1773473169595,0.00571463,2077.7,2077.1,2.43879832]
[1773473169792,0.00571463,2077.7,2077.2,0.91382989]
[1773473170295,0.897181,2077.9,2077.2,0.91382989]
[1773473171393,0.90341109,2077.9,2077.2,0.91382989]
[1773473175790,0.897181,2078.0,2077.4,0.91382989]
[1773473176788,0.90162078,2078.0,2077.4,0.91382989]
[1773473178095,0.00443978,2078.0,2077.4,0.91382989]
[1773473179198,0.90162078,2078.0,2077.4,0.91382989]
[1773473184598,0.00443978,2078.0,2077.6,0.84994864]
[1773473184997,6.89127265,2078.3,2077.6,0.84994864]
[1773473185203,1.05914717,2078.3,2077.6,0.84994864]
[1773473186004,0.81860717,2078.2,2077.6,0.84994864]
[1773473188402,1.06349321,2078.3,2077.6,0.84994864]
[1773473189206,0.81860717,2078.2,2077.6,0.84994864]
[1773473198419,0.82295321,2078.3,2077.6,0.84994864]
[1773473199923,0.00434604,2078.3,2077.6,0.84994864]
[1773473200219,0.82295321,2078.3,2077.6,0.84994864]
[1773473200919,0.00434604,2078.3,2077.6,0.84994864]
[1773473203918,0.82295321,2078.3,2077.6,0.84994864]
[1773473221035,0.78744241,2078.7,2078.0,0.73385175]
[1773473221235,5.84254686,2078.6,2078.0,0.73385175]
[1773473221434,6.62998927,2078.7,2078.0,0.73385175]
[1773473221631,5.84254686,2078.7,2078.0,0.73385175]
[1773473221935,6.62998927,2078.7,2078.0,0.73385175]
[1773473222136,6.63544371,2078.7,2078.0,0.73385175]
[1773473222339,0.79289685,2078.7,2078.0,0.73385175]
[1773473222634,0.00545444,2078.7,2078.0,0.73385175]
[1773473223026,0.00545444,2078.7,2078.2,0.73385175]
[1773473223338,0.79289685,2078.7,2078.2,0.73385175]
[1773473223833,5.83875104,2078.8,2078.2,0.73385175]
[1773473224031,0.78744241,2078.9,2078.2,0.73385175]
[1773473224736,0.79308995,2078.9,2078.2,0.73385175]
[1773473226937,1.52580884,2078.9,2078.2,0.73385175]
[1773473227137,0.78744241,2078.8,2078.2,0.73385175]
[1773473232041,0.79308995,2078.9,2078.2,0.73385175]
[1773473233239,0.00564754,2078.9,2078.2,0.73385175]
[1773473233438,0.00564754,2078.9,2078.4,0.73385175]
[1773473233638,0.78744241,2079.1,2078.4,0.73385175]
[1773473234642,0.79171957,2079.1,2078.4,0.73385175]
[1773473236239,0.00427716,2079.1,2078.4,0.73385175]
[1773473236440,0.40647208,2079.7,2078.6,0.73385175]
[1773473237336,0.41184154,2079.7,2078.6,0.74002967]
[1773473237841,0.00536946,2079.7,2078.6,0.74002967]
[1773473238142,0.4150856,2079.7,2078.6,0.74002967]
[1773473243441,0.00536946,2079.7,2078.6,0.74002967]
[1773473245239,0.00536946,2079.7,2078.8,0.77537885]
[1773473248646,0.00536946,2079.7,2078.9,23.475]
[1773473248842,0.38897511,2079.7,2079.0,0.77537885]
[1773473249945,0.76394623,2079.6,2078.8,0.77537885]
[1773473265761,0.76394623,2079.6,2078.8,24.55437885]
[1773473265962,0.76394623,2079.6,2078.9,0.77537885]
[1773473270472,0.55989614,2079.9,2079.1,0.74466434]
[1773473270970,0.78546223,2079.7,2079.1,0.74466434]
[1773473271366,0.79039813,2079.7,2079.1,0.74466434]
[1773473271570,0.75796326,2079.6,2078.9,24.58201362]
[1773473271964,0.75796326,2079.5,2079.0,0.76301362]
[1773473274466,0.75796326,2079.4,2079.0,0.76301362]
[1773473279072,0.75796326,2079.3,2079.0,0.76301362]
[1773473279573,0.75796326,2079.3,2078.9,23.819]
[1773473279574,0.75796326,2079.2,2078.9,23.819]
[1773473279971,0.75796326,2079.2,2078.9,24.58201362]
[1773473281169,0.75796326,2079.6,2079.0,0.76301362]
[1773473281371,0.75796326,2079.4,2079.0,0.76301362]
[1773473281775,5.81797222,2079.3,2079.0,0.76301362]
[1773473283476,6.57593548,2079.3,2079.0,0.76301362]
[1773473284076,6.57593548,2079.3,2078.9,24.58201362]
[1773473284270,0.75796326,2079.3,2078.9,24.58201362]
[1773473284971,6.57593548,2079.3,2078.9,24.58201362]
[1773473285474,6.57593548,2079.3,2079.0,0.76301362]
[1773473286379,5.81797222,2079.2,2079.0,0.76301362]
[1773473286579,0.75796326,2079.3,2079.0,0.76301362]
[1773473286981,5.81797222,2079.2,2079.0,0.76301362]
[1773473288781,0.75796326,2079.3,2079.0,0.76301362]
[1773473288982,5.81797222,2079.2,2079.0,0.76301362]
[1773473289882,0.75796326,2079.3,2079.0,0.76301362]
[1773473290479,5.81797222,2079.2,2079.0,0.76301362]
[1773473290682,0.75796326,2079.4,2079.0,0.76301362]
[1773473291084,5.81797222,2079.2,2079.0,0.76301362]
[1773473291484,5.81797222,2079.1,2079.0,0.76301362]
[1773473291686,0.75796326,2079.4,2079.0,0.76301362]
[1773473291984,5.81797222,2079.2,2079.0,0.76301362]
[1773473292188,0.75796326,2079.4,2079.0,0.76301362]
[1773473292485,5.81797222,2079.2,2079.0,0.76301362]
[1773473292684,0.75796326,2079.4,2079.0,0.76301362]
[1773473293081,5.81797222,2079.2,2079.0,0.76301362]
[1773473293279,0.75796326,2079.4,2079.0,0.76301362]
[1773473293476,5.14373691,2079.2,2079.0,0.76301362]
[1773473293681,0.75796326,2079.5,2079.0,0.76301362]
[1773473293987,4.77717032,2079.3,2079.0,0.76301362]
[1773473294187,0.75796326,2079.5,2079.0,0.76301362]
[1773473295084,5.02172466,2079.3,2079.0,0.76301362]
[1773473295285,0.75796326,2079.3,2079.0,0.76301362]
[1773473295586,4.2637614,2079.2,2079.0,0.76301362]
[1773473296490,0.46258252,2079.2,2079.0,0.76301362]
[1773473296686,0.75796326,2079.6,2079.0,0.76301362]
[1773473316902,0.75796326,2079.6,2078.9,31.30728691]
[1773473317107,0.75796326,2079.6,2078.9,23.819]
[1773473317307,0.75796326,2079.6,2078.9,24.83111198]
[1773473317701,0.75796326,2079.6,2079.0,1.01211198]
[1773473324011,1.06160963,2079.5,2078.9,23.819]
[1773473324514,1.06160963,2079.5,2078.9,24.83111198]
[1773473324910,1.06160963,2079.5,2078.9,23.819]
[1773473325814,1.06160963,2079.5,2078.9,24.83111198]
[1773473335622,1.06160963,2079.5,2079.0,0.96024946]
[1773473338023,1.03300779,2079.3,2078.8,8.44853637]
[1773473338225,1.03300779,2079.1,2078.8,25.73624946]
[1773473338523,1.03300779,2079.1,2078.7,0.96024946]
[1773473340024,1.03300779,2079.2,2078.7,0.96024946]
[1773473343231,2.55111447,2079.2,2078.6,40.80617792]
[1773473343437,1.03300779,2078.9,2078.5,0.96024946]
[1773473343936,1.03300779,2078.9,2078.3,25.82924946]
[1773473344134,1.03300779,2078.9,2078.3,25.83224946]
[1773473344333,1.03300779,2078.9,2078.4,0.96024946]
[1773473351644,1.03300779,2079.1,2078.4,0.96024946]
[1773473351945,1.03300779,2079.3,2078.5,0.96024946]
[1773473352246,1.03300779,2079.3,2078.7,0.96024946]
[1773473357752,1.03300779,2079.6,2078.7,0.96024946]
[1773473372354,1.49617102,2079.7,2078.8,1.55372123]
[1773473380464,0.0049359,2079.7,2078.8,1.55372123]
[1773473380866,1.49617102,2079.7,2078.8,1.55372123]
[1773473381164,1.49617102,2079.7,2078.9,1.55372123]
[1773473386878,1.49617102,2079.7,2079.0,1.55372123]
[1773473396184,1.49617102,2079.7,2079.1,1.48781233]
[1773473400683,5.93753718,2080.2,2079.3,1.48781233]
[1773473400684,1.39821802,2079.9,2079.3,1.48781233]
[1773473400892,1.39821802,2079.9,2079.4,1.48781233]
[1773473401386,1.39821802,2079.9,2079.5,1.48781233]
[1773473401784,1.40170831,2079.9,2079.5,1.48781233]
[1773473402488,1.40170831,2079.9,2079.5,42.28781233]
[1773473402884,1.40170831,2079.9,2079.5,40.8]
[1773473403990,1.40170831,2079.9,2079.3,1.48781233]
[1773473404583,1.40170831,2079.9,2079.5,1.48781233]
[1773473408888,0.00349029,2079.9,2079.5,1.48781233]
[1773473410590,1.39821802,2080.0,2079.5,1.48781233]
[1773473411096,1.39821802,2080.5,2079.5,1.48781233]
[1773473411297,1.39821802,2080.4,2079.5,1.48781233]
[1773473411497,1.40305867,2080.4,2079.5,1.48781233]
[1773473415593,1.40305867,2080.4,2079.4,42.31675071]
[1773473415794,1.40305867,2080.4,2079.5,1.48781233]
[1773473422399,1.40305867,2080.4,2079.7,1.37305423]
[1773473422798,0.00484065,2080.4,2079.9,1.37305423]
[1773473423007,0.00484065,2080.4,2079.9,1.37767823]
[1773473423501,1.33451177,2080.4,2079.9,1.37767823]
[1773473424504,1.33451177,2080.4,2079.9,26.72267823]
[1773473424698,1.33451177,2080.4,2080.0,1.37305423]
[1773473425604,1.33451177,2080.4,2079.9,26.72267823]
[1773473425903,1.33451177,2080.4,2079.9,0.004624]
[1773473430110,1.33451177,2080.4,2079.9,1.37767823]
[1773473430610,1.33451177,2080.4,2079.9,0.004624]
[1773473433017,1.33451177,2080.4,2079.9,1.37767823]
[1773473434209,1.33451177,2080.4,2079.9,0.004624]
[1773473434911,1.32967112,2080.0,2079.4,49.66134114]
[1773473435115,1.32967112,2080.0,2079.4,1.37305423]
[1773473435310,1.32967112,2080.0,2079.3,1.37305423]
[1773473435511,1.32967112,2080.0,2079.3,1.61058666]
[1773473435708,1.32967112,2080.0,2079.3,42.41058666]
[1773473435913,1.32967112,2080.0,2079.3,41.04099555]
[1773473436912,1.32967112,2079.8,2079.3,41.04099555]
[1773473437112,1.32967112,2079.8,2079.3,0.24099555]
[1773473437715,1.32967112,2079.8,2079.3,1.61404978]
[1773473442027,1.32967112,2080.2,2079.5,1.37305423]
[1773473442329,1.32967112,2080.2,2079.6,1.37305423]
[1773473442633,1.32967112,2080.2,2079.7,1.37305423]
[1773473443123,1.33451177,2080.4,2079.7,1.37305423]
[1773473445427,1.32967112,2080.3,2079.7,1.37305423]
[1773473448336,1.32967112,2080.3,2079.5,26.68608409]
[1773473448829,1.32967112,2080.3,2079.6,1.20008409]
[1773473449837,1.2326987,2080.2,2079.6,1.20008409]
[1773473454840,1.1898519,2080.3,2079.6,1.20008409]
[1773473461840,1.1898519,2080.0,2079.5,25.72539709]
[1773473462238,1.1898519,2079.8,2079.3,0.00346312]
[1773473462540,1.1898519,2080.2,2079.2,1.28970157]
[1773473462741,1.1898519,2080.1,2079.2,1.28970157]
[1773473462941,2.70660261,2080.1,2079.2,1.28970157]
[1773473463137,1.1898519,2080.0,2079.2,1.52637988]
[1773473463542,1.1898519,2080.0,2079.2,1.53075233]
[1773473464443,1.1898519,2079.8,2079.2,1.53075233]
[1773473466338,1.1898519,2079.6,2079.2,0.24105076]
[1773473470441,1.1898519,2079.6,2079.2,0.00437245]
[1773473470649,1.1898519,2079.4,2078.9,42.08970157]
[1773473471546,1.1898519,2079.4,2078.9,42.09445766]
[1773473471945,1.1898519,2079.4,2079.0,1.28970157]
[1773473476146,1.1898519,2079.6,2079.0,1.28970157]
[1773473488260,1.10673926,2079.9,2079.0,1.28970157]
[1773473496464,1.10673926,2079.9,2079.2,1.10444186]
[1773473502565,1.10673926,2080.1,2079.4,1.10444186]
[1773473518387,1.10673926,2080.1,2079.5,1.0261801]
[1773473521691,1.06549757,2080.3,2079.5,1.0261801]
[1773473525293,1.06549757,2080.3,2079.6,1.0261801]
[1773473530093,1.06549757,2080.3,2079.7,1.0261801]
[1773473536102,1.06549757,2080.3,2079.6,1.0261801]
[1773473539611,1.06549757,2080.3,2079.7,1.0261801]
[1773473549214,1.06549757,2080.3,2079.6,8.40422162]
[1773473552916,1.06549757,2080.3,2079.5,34.57622162]
[1773473553216,1.06549757,2080.3,2079.6,0.91593471]
[1773473557417,0.97150249,2080.3,2079.9,0.91593471]
[1773473566128,0.97150249,2080.3,2079.7,7.48828691]
[1773473566417,0.97150249,2080.3,2079.7,0.91593471]
[1773473567426,0.97150249,2080.3,2079.6,0.87897409]
[1773473569423,0.97150249,2080.3,2079.4,7.10347722]
[1773473569731,0.89627872,2079.8,2079.1,0.87897409]
[1773473570932,0.89627872,2079.8,2079.0,0.87897409]
[1773473574222,0.93350032,2079.6,2078.9,0.91067218]
[1773473580340,0.93350032,2079.4,2078.9,0.00475609]
[1773473580539,0.93350032,2079.2,2078.5,0.90591609]
[1773473581537,0.93350032,2079.2,2077.7,10.26525886]
[1773473581538,0.93350032,2078.8,2078.3,0.90591609]
[1773473581746,0.93350032,2078.6,2077.9,0.90591609]
[1773473582637,0.93738644,2078.6,2077.9,0.91015376]
[1773473585438,0.00388612,2078.6,2077.9,0.91015376]
[1773473585643,0.93350032,2079.1,2078.4,0.90591609]
[1773473586239,0.93350032,2079.1,2077.9,0.00423767]
[1773473586240,0.93350032,2079.1,2078.2,0.90591609]
[1773473586442,0.93350032,2078.9,2078.2,0.90591609]
[1773473586638,0.93946503,2078.9,2078.2,0.90591609]
[1773473587941,0.93946503,2078.9,2078.2,0.57699159]
[1773473588140,0.93350032,2078.7,2078.0,0.90591609]
[1773473588540,0.00596471,2078.9,2078.6,0.90591609]
[1773473588736,0.93350032,2079.6,2078.6,0.90591609]
[1773473588942,0.93350032,2079.4,2078.6,0.90591609]
[1773473589543,0.93350032,2079.2,2078.5,0.90591609]
[1773473589745,0.93350032,2079.0,2078.5,0.90591609]
[1773473591638,0.93350032,2079.0,2078.2,0.90591609]
[1773473593241,0.93350032,2079.0,2078.4,0.90591609]
[1773473603444,0.77619068,2079.1,2078.4,0.90591609]
[1773473614255,0.77619068,2079.1,2078.6,0.84268153]
[1773473618156,0.77619068,2079.2,2078.6,0.84268153]
[1773473618354,0.77619068,2079.3,2078.6,0.84268153]
[1773473618958,6.53171837,2079.3,2078.6,0.84268153]
[1773473619156,0.77619068,2079.3,2078.6,0.84268153]
[1773473621058,0.78052886,2079.4,2078.6,0.84268153]
[1773473636079,0.00433818,2079.4,2078.6,8.34675914]
[1773473636278,0.00433818,2079.4,2078.7,0.74325785]
[1773473640977,0.00433818,2079.4,2078.7,8.24733546]
[1773473641172,0.00433818,2079.4,2078.8,0.72175711]
[1773473643182,0.73976629,2079.4,2078.8,0.72175711]
[1773473643383,4.27489689,2080.0,2078.8,0.72175711]
[1773473643384,0.73542811,2079.5,2078.8,0.72175711]
[1773473644282,0.73984599,2079.5,2078.8,0.72175711]
[1773473647486,0.73984599,2079.5,2078.9,0.69218472]
[1773473647687,0.73984599,2079.5,2079.1,0.69016843]
[1773473647888,0.73984599,2079.5,2079.0,26.72416843]
[1773473648084,0.73984599,2079.5,2079.1,0.69007609]
[1773473649788,0.73984599,2079.5,2079.0,26.034]
[1773473649982,0.73984599,2079.5,2079.1,0.68770484]
[1773473651683,0.73984599,2079.5,2078.8,8.18862475]
[1773473651882,0.73984599,2079.5,2078.9,26.072]
[1773473652083,0.73984599,2079.5,2078.9,26.75644292]
[1773473654089,0.73984599,2079.5,2079.0,0.68042751]
[1773473654783,0.73542811,2079.7,2079.0,0.68042751]
[1773473655891,0.7403369,2079.7,2079.0,0.68042751]
[1773473661593,0.7403369,2079.7,2079.1,0.65274033]
[1773473662990,0.68007317,2079.7,2079.1,0.65274033]
[1773473664398,0.68007317,2079.7,2078.9,34.22207477]
[1773473664896,0.68007317,2079.7,2079.0,0.64435794]
[1773473673903,0.68007317,2079.7,2079.1,0.63877253]
[1773473681405,0.68007317,2079.7,2079.0,35.33852067]
[1773473681406,0.67516438,2079.4,2078.5,41.48499694]
[1773473681711,0.67516438,2079.3,2078.5,41.48499694]
[1773473682513,0.67516438,2079.6,2079.0,0.68499694]
[1773473683013,0.67516438,2079.6,2079.2,0.68499694]
[1773473687410,0.67516438,2079.6,2079.0,0.69354803]
[1773473687610,0.67516438,2079.6,2079.1,0.69354803]
[1773473700928,0.67516438,2079.6,2079.0,0.6770652]
[1773473701817,0.67516438,2079.6,2078.9,26.329]
[1773473702228,0.67516438,2079.6,2078.9,27.0060652]
[1773473702624,0.69579026,2079.5,2078.9,27.0060652]
[1773473704125,0.69579026,2079.5,2078.9,26.329]
[1773473704732,0.69579026,2079.5,2078.9,27.0060652]
[1773473704922,0.69579026,2079.4,2078.7,0.6770652]
[1773473705127,0.69579026,2079.3,2078.7,0.6770652]
[1773473705433,0.69579026,2079.3,2078.6,0.6770652]
[1773473706934,0.69579026,2078.8,2078.2,0.6770652]
[1773473708640,6.47725518,2079.0,2078.2,0.6770652]
[1773473708834,0.69579026,2079.0,2078.2,0.6770652]
[1773473727642,0.69579026,2079.0,2078.0,0.64813758]
[1773473730347,0.62546147,2078.8,2077.9,40.80423767]
[1773473730547,0.62546147,2078.8,2077.9,41.45237525]
[1773473730742,0.62546147,2078.8,2077.9,40.80423767]
[1773473730951,0.62546147,2078.8,2078.0,0.64813758]
[1773473732954,0.62546147,2078.7,2078.0,0.64813758]
[1773473733154,0.62546147,2078.6,2078.0,0.64813758]
[1773473734049,0.62546147,2078.6,2077.9,0.65237525]
[1773473737555,6.39211499,2078.6,2077.9,0.65237525]
[1773473737854,0.62546147,2078.5,2077.9,0.65237525]
[1773473738250,0.62546147,2078.4,2077.9,0.65237525]
[1773473740955,0.62546147,2078.6,2077.9,0.65237525]
[1773473742953,0.62546147,2078.6,2077.9,0.00423767]
[1773473744264,0.62546147,2078.6,2077.9,0.65237525]
[1773473745864,0.62546147,2078.5,2077.9,0.65237525]
[1773473746065,0.62546147,2078.4,2077.9,0.65237525]
[1773473753067,0.6792165,2078.6,2077.9,0.65237525]
[1773473755173,0.6792165,2078.5,2077.9,0.65237525]
[1773473759173,6.47782404,2078.5,2077.9,0.65237525]
[1773473759378,6.47782404,2078.4,2077.9,0.65237525]
[1773473759579,0.6792165,2078.4,2077.9,0.65237525]
[1773473760974,6.4867771,2078.4,2077.9,0.65237525]
[1773473761174,0.6792165,2078.4,2077.9,0.65237525]
[1773473761876,0.6792165,2078.3,2077.9,0.65237525]
[1773473764479,0.6792165,2078.3,2077.9,0.62594965]
[1773473764678,6.49372359,2078.4,2077.9,0.62594965]
[1773473764878,0.6792165,2078.4,2077.9,0.62594965]
[1773473765284,0.6792165,2078.3,2077.9,0.62594965]
[1773473768689,0.6792165,2078.2,2077.9,0.62594965]
[1773473768985,0.6850091,2078.2,2077.9,0.62594965]
[1773473769693,0.0057926,2078.2,2077.9,0.62594965]
[1773473772086,0.6792165,2078.1,2077.4,7.99113414]
[1773473772292,6.9227926,2078.2,2077.4,0.62171198]
[1773473772293,0.6792165,2077.9,2077.4,0.62171198]
[1773473772493,0.6792165,2077.8,2076.9,0.62171198]
[1773473772792,0.6792165,2077.7,2077.1,0.62171198]
[1773473773190,0.6792165,2077.7,2077.1,0.62705838]
[1773473778697,0.6792165,2078.0,2077.1,0.62705838]
[1773473783793,0.67674028,2077.9,2077.1,0.62705838]
[1773473784099,0.67674028,2077.7,2077.1,0.64454687]
[1773473789299,5.85470835,2077.9,2077.3,0.63920047]
[1773473789490,0.67674028,2078.0,2077.3,0.63920047]
[1773473792402,0.67674028,2077.9,2077.1,0.64454687]
[1773473792604,0.67674028,2077.7,2077.1,0.64454687]
[1773473792904,0.67674028,2077.5,2076.9,0.63920047]
[1773473794003,0.67674028,2077.5,2076.9,0.64316288]
[1773473794701,0.67674028,2077.5,2076.9,0.00396241]
[1773473795004,0.67674028,2077.3,2076.8,0.63920047]
[1773473795805,0.67674028,2077.3,2076.8,0.64448957]
[1773473798804,6.5403648,2077.5,2076.8,0.64448957]
[1773473799307,0.67674028,2077.4,2076.8,0.64448957]
[1773473811111,5.86362452,2077.5,2076.8,0.64448957]
[1773473811308,4.62634945,2077.7,2076.9,0.59503919]
[1773473811309,0.60053036,2077.6,2076.9,0.59503919]
[1773473811613,0.60053036,2077.4,2076.9,0.59503919]
[1773473811911,1.52069471,2077.5,2076.9,0.59503919]
[1773473811912,0.60053036,2077.3,2076.9,0.59503919]
[1773473813815,6.47476772,2077.4,2076.9,0.59503919]
[1773473814010,7.027,2077.5,2076.9,0.59503919]
[1773473815213,0.60053036,2077.7,2077.0,0.59503919]
[1773473815415,0.60053036,2077.6,2077.0,0.59503919]
[1773473815715,0.60053036,2077.5,2077.0,0.59503919]
[1773473818520,0.60053036,2077.4,2076.8,0.60032829]
[1773473820211,0.60053036,2077.3,2076.8,0.60032829]
[1773473824112,0.60053036,2077.3,2076.4,1.52069471]
[1773473824113,0.60053036,2076.8,2076.4,0.59503919]
[1773473824509,0.60053036,2076.8,2076.2,0.59503919]
[1773473824912,0.60053036,2076.8,2076.2,0.59983629]
[1773473826118,0.60053036,2076.7,2076.2,0.59983629]
[1773473826320,0.60676174,2076.7,2076.2,0.59983629]
[1773473828620,0.60053036,2076.4,2075.9,40.8]
[1773473828821,0.60053036,2076.5,2075.8,0.59503919]
[1773473829127,0.60053036,2076.6,2075.8,0.59503919]
[1773473829421,6.48907924,2076.7,2076.0,0.59503919]
[1773473829724,0.60676174,2076.7,2076.0,0.59912259]
[1773473836124,0.00623138,2076.7,2076.0,2.1198173]
[1773473836431,0.00623138,2076.7,2076.1,0.59503919]
[1773473838820,0.60676174,2076.7,2076.1,0.59503919]
[1773473842134,0.00623138,2076.7,2076.1,2.1157339]
[1773473842435,0.00623138,2076.7,2076.2,0.58107524]
[1773473843432,0.59306565,2076.7,2076.2,0.58107524]
[1773473844137,0.59306565,2076.7,2076.0,0.58515864]
[1773473845332,0.00623138,2076.7,2076.0,0.58515864]
[1773473845937,0.59306565,2076.7,2076.0,0.58515864]
[1773473852650,6.4592703,2077.0,2076.0,0.58515864]
[1773473852952,0.58683427,2077.0,2076.0,0.58515864]
[1773473853144,0.58683427,2076.9,2076.0,0.58515864]
[1773473853450,0.58683427,2076.8,2076.0,0.58515864]
[1773473853744,0.58683427,2076.7,2076.0,0.58515864]
[1773473854845,0.5916057,2076.8,2076.0,0.58515864]
[1773473855046,0.58683427,2076.7,2076.0,0.58515864]
[1773473855952,0.00477143,2076.8,2076.0,0.58515864]
[1773473856344,0.5916057,2076.8,2076.0,0.58515864]
[1773473857249,0.00477143,2076.8,2076.0,0.58515864]
[1773473858351,0.5916057,2076.8,2076.0,0.58515864]
[1773473861861,0.00477143,2076.8,2076.0,0.58515864]
[1773473865252,6.47655178,2077.2,2076.3,0.58107524]
[1773473865652,0.58683427,2077.2,2076.3,0.58107524]
[1773473866353,0.59213178,2077.2,2076.3,0.58107524]
[1773473867554,0.00529751,2077.2,2076.3,0.58107524]
[1773473868261,0.57343249,2077.2,2076.3,0.58107524]
[1773473869155,0.00529751,2077.2,2076.3,0.58107524]
[1773473873159,0.61193034,2077.2,2076.3,0.58107524]
[1773473875160,0.00529751,2077.2,2076.3,0.58107524]
[1773473875863,0.61193034,2077.2,2076.3,0.58107524]
[1773473880464,0.60663283,2077.5,2076.6,0.59730803]
[1773473881263,0.61138014,2077.5,2076.6,0.59730803]
[1773473885764,0.60663283,2077.3,2076.3,0.59730803]
[1773473894176,6.47830497,2077.4,2076.3,0.59730803]
[1773473894478,0.60663283,2077.4,2076.5,0.59730803]
[1773473907686,0.60663283,2077.4,2076.8,0.57618428]
[1773473916099,0.00474731,2077.5,2076.8,0.57618428]
[1773473916100,0.56188198,2078.0,2077.4,0.57618428]
[1773473917097,0.565345,2078.0,2077.4,0.57618428]
[1773473920105,0.565345,2078.0,2077.2,0.57618428]
[1773473928611,0.565345,2078.0,2077.4,0.55932942]
[1773473933911,0.565345,2078.0,2077.2,41.38690518]
[1773473934112,0.565345,2078.0,2077.2,0.58690518]
[1773473944515,0.60570786,2077.9,2077.2,0.58690518]
[1773473946023,6.45286737,2077.9,2077.2,0.58690518]
[1773473946222,0.60570786,2077.9,2077.2,0.58690518]
[1773473948222,6.45284027,2077.9,2077.2,0.58690518]
[1773473948423,0.60570786,2077.9,2077.2,0.58690518]
[1773473949019,6.45345486,2077.9,2077.2,0.58690518]
[1773473949219,0.60570786,2077.9,2077.2,0.58690518]
[1773473949925,0.60570786,2077.8,2077.2,0.58690518]
[1773473950622,0.60917088,2078.0,2077.4,0.58690518]
[1773473950814,0.00346302,2078.0,2077.4,0.58690518]
[1773473951020,5.85156334,2078.0,2077.4,0.58690518]
[1773473951214,6.4572712,2078.0,2077.4,0.58690518]
[1773473951417,0.60917088,2078.0,2077.4,0.58690518]
[1773473951821,6.45712391,2078.0,2077.4,0.58690518]
[1773473952020,0.60917088,2078.0,2077.4,0.58690518]
[1773473952422,6.45706881,2078.0,2077.4,0.58690518]
[1773473952622,0.60917088,2078.0,2077.4,0.58690518]
[1773473953024,6.45698816,2078.0,2077.4,0.58690518]
[1773473953226,0.60917088,2078.0,2077.4,0.58690518]
[1773473953722,6.45598663,2078.0,2077.4,0.58690518]
[1773473953926,0.60917088,2078.0,2077.4,0.58690518]
[1773473954424,6.45599024,2078.0,2077.4,0.58690518]
[1773473954724,0.60917088,2078.0,2077.4,0.58690518]
[1773473955723,6.45592303,2078.0,2077.4,0.58690518]
[1773473955924,0.60917088,2078.0,2077.4,0.58690518]
[1773473957729,0.60570786,2078.1,2077.8,0.58690518]
[1773473958520,0.54279687,2078.3,2077.8,0.58690518]
[1773473958725,0.54890806,2078.3,2077.8,0.59246118]
[1773473968336,0.55503451,2078.5,2078.0,0.59369706]
[1773473969336,0.5587036,2078.5,2078.0,0.59369706]
[1773473975444,0.00366909,2078.5,2078.0,0.59369706]
[1773473975946,0.58370561,2078.5,2078.0,0.59369706]
[1773473978244,0.00366909,2078.5,2078.0,0.59369706]
[1773473978642,0.59050707,2078.9,2078.0,0.59369706]
[1773473978841,6.41941583,2078.9,2078.0,0.59369706]
[1773473979242,0.59050707,2078.9,2078.0,0.59369706]
[1773473979642,0.59633621,2078.9,2078.0,0.59369706]
[1773473983250,0.59633621,2078.9,2078.2,0.59369706]
[1773473988947,0.59633621,2078.9,2078.4,0.55666161]
[1773473990849,0.59633621,2078.9,2078.3,41.35666161]
[1773473991056,0.59633621,2078.9,2078.1,0.55666161]
[1773473993055,0.59633621,2078.9,2077.9,41.3836966]
[1773473993756,0.59633621,2078.9,2078.0,0.5836966]
[1773474003172,0.55112075,2078.8,2078.0,0.5836966]
[1773474003576,0.55112075,2078.6,2077.8,0.005556]
[1773474003974,0.55112075,2078.5,2077.8,40.805556]
[1773474004473,0.55112075,2078.5,2077.8,0.005556]
[1773474005375,0.54617445,2078.3,2077.0,0.5836966]
[1773474005772,0.54604011,2078.2,2077.0,0.5836966]
[1773474006075,0.54604011,2078.2,2077.2,0.5836966]
[1773474006470,0.54604011,2078.2,2077.2,0.58808782]
[1773474007568,0.53338936,2078.1,2077.2,0.58808782]
[1773474007763,0.53325808,2078.3,2077.2,0.58808782]
[1773474009477,0.49293685,2078.2,2077.2,0.58808782]
[1773474019881,0.49293685,2078.2,2077.3,0.5836966]
[1773474021388,0.72704282,2078.4,2077.3,0.5836966]
[1773474021684,0.72704282,2078.4,2077.4,0.55285188]
[1773474022190,0.48651282,2078.4,2077.4,0.55285188]
[1773474031595,0.48651282,2078.4,2077.7,0.55285188]
[1773474032591,6.3144585,2078.4,2077.7,0.55285188]
[1773474032798,0.48651282,2078.4,2077.7,0.55285188]
[1773474035599,0.46488975,2078.3,2077.5,0.55285188]
[1773474035798,0.46479586,2078.2,2077.5,0.55285188]
[1773474047405,0.47509765,2078.1,2077.5,0.55285188]
[1773474051518,0.48481284,2078.2,2077.5,0.55285188]
[1773474053819,6.34673186,2078.2,2077.5,0.55285188]
[1773474054118,0.48481284,2078.2,2077.5,0.55285188]
[1773474055218,6.34717285,2078.2,2077.5,0.55285188]
[1773474055422,0.48481284,2078.2,2077.5,0.55285188]
[1773474057316,6.34730084,2078.2,2077.5,0.55285188]
[1773474057524,0.48481284,2078.2,2077.5,0.55285188]
[1773474059418,6.34846169,2078.2,2077.5,0.55285188]
[1773474059624,0.48481284,2078.2,2077.5,0.55285188]
[1773474060217,6.34875738,2078.2,2077.5,0.55285188]
[1773474060423,0.48481284,2078.2,2077.5,0.55285188]
[1773474061126,6.34884794,2078.2,2077.5,0.55285188]
[1773474061426,0.48481284,2078.2,2077.5,0.55285188]
[1773474062126,0.4806489,2078.1,2077.5,0.55285188]
[1773474077344,0.46537215,2078.0,2077.5,0.55285188]
[1773474078642,0.46537215,2078.0,2077.3,0.54041746]
[1773474079048,0.46605172,2077.9,2077.3,0.54041746]
[1773474079444,0.46605172,2077.9,2077.2,0.00439122]
[1773474079648,0.46481798,2077.3,2076.8,0.54041746]
[1773474080741,0.47088113,2077.3,2076.8,0.54559613]
[1773474090053,0.45814703,2077.6,2077.0,1.51954155]